fUST/lending_fUST_20250605
["ID","MTS","AMOUNT","RATE_DAILY","PERIOD"]
[364437829,1749102638667,-158.6024443,0.000198,2]
[364437830,1749102638676,-572.8183099,0.000198,2]
[364437831,1749102638686,-572.8183099,0.000198,2]
[364437832,1749102638696,-1143.9343286,0.000198,2]
[364437833,1749102638706,-572.8183099,0.000198,2]
[364437834,1749102638715,-356.4730869,0.000198,2]
[364437835,1749102638725,-444.377,0.00019854,2]
[364437836,1749102638735,-207.4,0.00019858,2]
[364437837,1749102638744,-4868.54642866,0.00019858,2]
[364437838,1749102638758,-131.45357134,0.00019858,2]
[364437839,1749102638768,-754.79524691,0.000199,2]
[364437840,1749102638777,-244.52564697,0.00019992,2]
[364437841,1749102638790,-195.47435303,0.00019992,2]
[364437842,1749102638800,-481.68,0.00019993,2]
[364437843,1749102638809,-128.48965167,0.00019993,2]
[364438272,1749102644447,-27.49034833,0.00019993,2]
[364438274,1749102644457,-273.13,0.00019993,2]
[364438276,1749102644467,-121.21937288,0.00019993,2]
[364438454,1749102646359,-36.73062712,0.00019993,2]
[364438456,1749102646373,-440.0,0.00019993,2]
[364438458,1749102646382,-867.26,0.00019993,2]
[364438460,1749102646392,-440.0,0.00019993,2]
[364438462,1749102646401,-440.0,0.00019995,2]
[364438464,1749102646410,-115.90939267,0.00019995,2]
[364445815,1749103059480,287.509121,0.00013699,2]
[364445820,1749103552852,2000.0,0.00018568,120]
[364445822,1749103631085,-416.67955268,0.00017426,2]
[364445824,1749103661761,-164.36271843,0.00017426,2]
[364445825,1749103691664,-340.74030046,0.00017429,2]
[364445826,1749103695094,-194.91840564,0.00017429,2]
[364445827,1749103700106,-182.41261038,0.00017429,2]
[364445828,1749103701741,-163.82220355,0.00017429,2]
[364445829,1749103705004,-188.59,0.00017429,2]
[364445830,1749103709853,-158.18523208,0.00017429,2]
[364445831,1749103711469,-207.41661997,0.00017429,2]
[364445832,1749103713186,-95.63462792,0.00017429,2]
[364445924,1749103765015,-188.11901069,0.00017425,2]
[364445925,1749103766991,-342.10279694,0.00017425,2]
[364445926,1749103769147,-193.3401252,0.00017425,2]
[364445927,1749103771863,-301.7867915,0.00017425,2]
[364445928,1749103774583,-456.69794491,0.00017425,2]
[364445929,1749103776064,-18.84333076,0.00017425,2]
[364445930,1749103813896,-193.23828604,0.00017427,2]
[364445931,1749103815501,-236.28749876,0.00017427,2]
[364445932,1749103817725,-191.89801977,0.00017427,2]
[364445933,1749103819845,-253.96030046,0.00017427,2]
[364445934,1749103822147,-157.56091234,0.00017427,2]
[364445937,1749103823814,-289.17936174,0.00017427,2]
[364445938,1749103825310,-151.47562089,0.00017427,2]
[364445972,1749103832357,-1005.89565187,0.000189,2]
[364445974,1749103832368,-229.48950782,0.00018929,2]
[364445975,1749103832379,-2947.19,0.00019012,2]
[364445977,1749103832388,-207.4,0.00019105,2]
[364445979,1749103832398,-183.793305,0.00019178,2]
[364445981,1749103832409,-300.0,0.00019443,2]
[364445983,1749103832418,-944.94194999,0.00019706,2]
[364446372,1749103840996,-65.52034339,0.00019706,2]
[364446389,1749103841144,-189.53770662,0.00019706,2]
[364446391,1749103841155,-404.163448,0.00019707,2]
[364446393,1749103841165,-300.0,0.00019714,2]
[364446395,1749103841176,-440.0,0.00019715,2]
[364446398,1749103841187,-440.0,0.00019715,2]
[364446400,1749103841197,-440.0,0.00019715,2]
[364446402,1749103841208,-500.0,0.00019715,2]
[364446404,1749103841219,-440.0,0.00019715,2]
[364446406,1749103841230,-440.0,0.00019716,2]
[364446408,1749103841240,-440.0,0.00019716,2]
[364446410,1749103841251,-440.0,0.00019716,2]
[364446412,1749103841260,-440.0,0.00019716,2]
[364446414,1749103841270,-440.0,0.00019716,2]
[364446417,1749103841280,-861.15,0.00019716,2]
[364446419,1749103841290,-440.0,0.00019716,2]
[364446421,1749103841299,-440.0,0.00019716,2]
[364446423,1749103841309,-476.2,0.00019716,2]
[364446441,1749103841480,-440.0,0.00019716,2]
[364446443,1749103841498,-440.0,0.00019716,2]
[364446446,1749103841509,-440.0,0.00019716,2]
[364446447,1749103841524,-440.0,0.00019717,2]
[364446449,1749103841534,-440.0,0.00019717,2]
[364446451,1749103841544,-661.45,0.00019717,2]
[364446453,1749103841554,-440.0,0.00019718,2]
[364446455,1749103841565,-440.0,0.00019718,2]
[364446457,1749103841575,-1217.12,0.00019718,2]
[364446459,1749103841584,-440.0,0.00019718,2]
[364446461,1749103841595,-224.46770584,0.00019876,2]
[364446463,1749103841604,-440.0,0.00019899,2]
[364446465,1749103841614,-440.0,0.00019899,2]
[364446467,1749103841623,-440.0,0.00019899,2]
[364446469,1749103841632,-197.81344444,0.00019899,2]
[364446472,1749103841644,-558.40655556,0.00019899,2]
[364446474,1749103841654,-355.502,0.000199,2]
[364446476,1749103841663,-823.4039132,0.000199,2]
[364446478,1749103841673,-1800.0,0.00019976,2]
[364446480,1749103841683,-1800.0,0.00019976,2]
[364446482,1749103841692,-1800.0,0.00019976,2]
[364446484,1749103841702,-1701.58897155,0.00019976,2]
[364446486,1749103841711,-5000.0,0.00019976,2]
[364446488,1749103841720,-500.0,0.00019987,2]
[364446490,1749103841730,-440.0,0.00019989,2]
[364446492,1749103841739,-440.0,0.00019989,2]
[364446494,1749103841750,-440.0,0.00019989,2]
[364446496,1749103841759,-440.0,0.00019989,2]
[364446498,1749103841768,-151.83025909,0.0001999,2]
[364446500,1749103841777,-440.0,0.0001999,2]
[364446502,1749103841788,-440.0,0.0001999,2]
[364446504,1749103841797,-440.0,0.0001999,2]
[364446506,1749103841806,-440.0,0.0001999,2]
[364446508,1749103841815,-861.15,0.0001999,2]
[364446510,1749103841825,-440.0,0.0001999,2]
[364446512,1749103841834,-440.0,0.0001999,2]
[364446514,1749103841843,-440.0,0.0001999,2]
[364446516,1749103841852,-440.0,0.0001999,2]
[364446518,1749103841861,-440.0,0.0001999,2]
[364446520,1749103841870,-440.0,0.00019991,2]
[364446522,1749103841879,-440.0,0.00019991,2]
[364446523,1749103841889,-440.0,0.00019992,2]
[364446525,1749103841898,-440.0,0.00019992,2]
[364446527,1749103841907,-1217.12,0.00019992,2]
[364446529,1749103841917,-500.0,0.00019992,2]
[364446531,1749103841926,-500.0,0.00019992,2]
[364446533,1749103841936,-440.0,0.00019992,2]
[364446535,1749103841945,-500.0,0.00019994,2]
[364446537,1749103841954,-159.91096927,0.00019995,2]
[364446539,1749103841963,-155.0,0.00019995,2]
[364446541,1749103841973,-161.62951458,0.00019999,2]
[364446543,1749103841983,-500.0,0.00019999,2]
[364446545,1749103841993,-500.0,0.00019999,2]
[364446547,1749103842002,-11722.37694857,0.00019999,3]
[364446549,1749103842011,-18447.52071512,0.0002,2]
[364446708,1749103843502,-661.45,0.00019991,2]
[364446710,1749103843512,-7377.41813225,0.0002,2]
[364446971,1749103846454,-363.747103,0.00019707,2]
[364446972,1749103846463,-300.0,0.00019999,2]
[364446973,1749103846473,-12035.89416186,0.0002,2]
[364446974,1749103846482,-3327.53257659,0.0002,2]
[364446976,1749103846492,-32656.26493555,0.0002,2]
[364446977,1749103846502,-3000.0,0.0002,2]
[364446979,1749103846512,-3000.0,0.0002001,2]
[364446981,1749103846527,-3000.0,0.0002002,2]
[364446984,1749103846537,-3000.0,0.0002003,2]
[364446986,1749103846548,-770.28,0.0002003,3]
[364446987,1749103846565,-3000.0,0.0002004,2]
[364446989,1749103846575,-3000.0,0.0002005,2]
[364446991,1749103846585,-1505.90734248,0.0002005,2]
[364446993,1749103846595,-500.0,0.00020059,2]
[364446995,1749103846605,-3000.0,0.0002006,2]
[364446997,1749103846614,-1300.0,0.00020068,2]
[364446999,1749103846623,-3000.0,0.0002007,2]
[364447001,1749103846632,-3000.0,0.0002008,2]
[364447003,1749103846642,-3000.0,0.0002009,2]
[364447005,1749103846651,-151.0,0.0002009,2]
[364447007,1749103846660,-151.0,0.0002009,2]
[364447009,1749103846669,-151.0,0.0002009,2]
[364447011,1749103846679,-151.0,0.0002009,2]
[364447013,1749103846688,-227.209186,0.0002009,2]
[364447015,1749103846698,-151.0,0.0002009,2]
[364447017,1749103846707,-151.0,0.0002009,2]
[364447019,1749103846717,-227.209186,0.0002009,2]
[364447021,1749103846726,-151.0,0.0002009,2]
[364447023,1749103846735,-151.290635,0.0002009,2]
[364447025,1749103846744,-151.0,0.0002009,2]
[364447027,1749103846754,-151.0,0.0002009,2]
[364447029,1749103846763,-151.0,0.0002009,2]
[364447031,1749103846772,-151.0,0.0002009,2]
[364447033,1749103846782,-151.0,0.0002009,2]
[364447034,1749103846793,-151.0,0.0002009,2]
[364447037,1749103846805,-151.0,0.0002009,2]
[364447038,1749103846814,-249.008402,0.0002009,2]
[364447040,1749103846825,-249.008402,0.0002009,2]
[364447042,1749103846834,-387.412387,0.0002009,2]
[364447044,1749103846843,-387.412387,0.0002009,2]
[364447046,1749103846853,-151.0,0.0002009,2]
[364447048,1749103846862,-151.0,0.0002009,2]
[364447050,1749103846871,-151.0,0.0002009,2]
[364447052,1749103846881,-151.0,0.0002009,2]
[364447054,1749103846890,-151.0,0.0002009,2]
[364447056,1749103846900,-151.0,0.0002009,2]
[364447058,1749103846910,-796.837502,0.0002009,2]
[364447060,1749103846919,-796.837502,0.0002009,2]
[364447062,1749103846928,-151.0,0.0002009,2]
[364447064,1749103846938,-252.339108,0.0002009,2]
[364447066,1749103846947,-252.339108,0.0002009,2]
[364447068,1749103846958,-230.106072,0.0002009,2]
[364447070,1749103846967,-230.106072,0.0002009,2]
[364447072,1749103846976,-151.0,0.0002009,2]
[364447074,1749103846985,-151.0,0.0002009,2]
[364447075,1749103846995,-151.0,0.0002009,2]
[364447077,1749103847005,-155.290581,0.0002009,2]
[364447080,1749103847015,-168.719121,0.0002009,2]
[364447082,1749103847025,-168.719121,0.0002009,2]
[364447083,1749103847034,-151.0,0.0002009,2]
[364447085,1749103847043,-151.0,0.0002009,2]
[364447087,1749103847052,-151.0,0.0002009,2]
[364447089,1749103847062,-151.0,0.0002009,2]
[364447091,1749103847071,-476.415913,0.0002009,2]
[364447093,1749103847080,-476.415913,0.0002009,2]
[364447095,1749103847089,-151.0,0.0002009,2]
[364447097,1749103847098,-151.0,0.0002009,2]
[364447099,1749103847107,-151.0,0.0002009,2]
[364447101,1749103847118,-151.0,0.0002009,2]
[364447103,1749103847128,-500.0,0.00020099,2]
[364447105,1749103847138,-3000.0,0.000201,2]
[364447107,1749103847147,-151.0,0.000201,2]
[364447109,1749103847157,-151.0,0.000201,2]
[364447111,1749103847166,-151.0,0.000201,2]
[364447113,1749103847176,-151.0,0.000201,2]
[364447115,1749103847185,-265.491957,0.000201,2]
[364447117,1749103847196,-1042.724498,0.000201,2]
[364447119,1749103847205,-1042.724498,0.000201,2]
[364447121,1749103847214,-151.135504,0.000201,2]
[364447123,1749103847223,-151.135504,0.000201,2]
[364447124,1749103847232,-151.0,0.000201,2]
[364447126,1749103847241,-1042.372635,0.000201,2]
[364447128,1749103847251,-3000.0,0.0002011,2]
[364447130,1749103847261,-3000.0,0.0002012,2]
[364447132,1749103847271,-3000.0,0.0002013,2]
[364447134,1749103847280,-3000.0,0.0002014,2]
[364447136,1749103847290,-500.0,0.00020149,2]
[364447138,1749103847299,-3000.0,0.0002015,2]
[364447140,1749103847309,-3000.0,0.0002016,2]
[364447142,1749103847318,-179.928781,0.0002016,2]
[364447144,1749103847328,-151.0,0.00020169,2]
[364447146,1749103847338,-151.0,0.00020169,2]
[364447148,1749103847348,-264.328248,0.00020169,2]
[364447150,1749103847357,-151.0,0.00020169,2]
[364447152,1749103847367,-2857.9,0.0002017,2]
[364447154,1749103847377,-2857.9,0.0002017,2]
[364447156,1749103847386,-3000.0,0.0002017,2]
[364447158,1749103847395,-196.148849,0.0002017,2]
[364447160,1749103847405,-196.148849,0.0002017,2]
[364447162,1749103847415,-151.0,0.0002017,2]
[364447164,1749103847424,-151.0,0.0002017,2]
[364447166,1749103847433,-151.0,0.0002017,2]
[364447168,1749103847442,-151.0,0.0002017,2]
[364447170,1749103847452,-151.70571,0.0002017,2]
[364447172,1749103847461,-192.026116,0.0002017,2]
[364447174,1749103847470,-192.026116,0.0002017,2]
[364447176,1749103847480,-151.0,0.0002017,2]
[364447178,1749103847490,-151.0,0.0002017,2]
[364447180,1749103847500,-151.0,0.0002017,2]
[364447182,1749103847509,-151.0,0.0002017,2]
[364447184,1749103847523,-151.0,0.0002017,2]
[364447186,1749103847532,-151.0,0.0002017,2]
[364447188,1749103847541,-151.0,0.0002017,2]
[364447190,1749103847552,-160.189429,0.0002017,2]
[364447192,1749103847562,-151.0,0.0002017,2]
[364447194,1749103847572,-151.0,0.0002017,2]
[364447195,1749103847582,-387.412387,0.0002017,2]
[364447197,1749103847591,-387.412387,0.0002017,2]
[364447200,1749103847602,-151.0,0.0002017,2]
[364447202,1749103847612,-151.0,0.0002017,2]
[364447203,1749103847621,-151.0,0.0002017,2]
[364447205,1749103847631,-151.0,0.0002017,2]
[364447207,1749103847642,-151.0,0.0002017,2]
[364447209,1749103847651,-796.837502,0.0002017,2]
[364447212,1749103847660,-796.837502,0.0002017,2]
[364447214,1749103847670,-151.0,0.0002017,2]
[364447216,1749103847680,-252.339108,0.0002017,2]
[364447217,1749103847690,-252.339108,0.0002017,2]
[364447219,1749103847699,-230.106072,0.0002017,2]
[364447222,1749103847709,-230.106072,0.0002017,2]
[364447224,1749103847719,-235.195982,0.0002017,2]
[364447225,1749103847731,-151.0,0.0002017,2]
[364447227,1749103847743,-151.0,0.0002017,2]
[364447229,1749103847753,-168.719121,0.0002017,2]
[364447231,1749103847763,-168.719121,0.0002017,2]
[364447234,1749103847773,-151.0,0.0002017,2]
[364447235,1749103847783,-476.415913,0.0002017,2]
[364447237,1749103847792,-476.415913,0.0002017,2]
[364447239,1749103847803,-151.0,0.0002017,2]
[364447242,1749103847813,-440.0,0.00020173,2]
[364447244,1749103847824,-440.0,0.00020173,2]
[364447246,1749103847835,-440.0,0.00020173,2]
[364447247,1749103847845,-756.22,0.00020173,2]
[364447249,1749103847855,-499.999999,0.0002018,2]
[364447251,1749103847864,-3000.0,0.0002018,2]
[364447254,1749103847874,-227.209186,0.0002018,2]
[364447256,1749103847884,-227.209186,0.0002018,2]
[364447258,1749103847893,-151.0,0.0002018,2]
[364447260,1749103847903,-151.0,0.0002018,2]
[364447261,1749103847912,-249.008402,0.0002018,2]
[364447263,1749103847922,-249.008402,0.0002018,2]
[364447265,1749103847931,-287.509121,0.00020187,2]
[364447267,1749103847941,-500.0,0.00020188,2]
[364447269,1749103847951,-151.0,0.00020189,2]
[364447272,1749103847960,-154.351455,0.00020189,2]
[364447274,1749103847970,-151.0,0.00020189,2]
[364447276,1749103847980,-3000.0,0.0002019,2]
[364447277,1749103847989,-151.0,0.0002019,2]
[364447279,1749103847999,-1042.724498,0.0002019,2]
[364447281,1749103848009,-1042.724498,0.0002019,2]
[364447283,1749103848018,-151.135504,0.0002019,2]
[364447285,1749103848028,-151.135504,0.0002019,2]
[364447288,1749103848038,-151.0,0.0002019,2]
[364447289,1749103848047,-3000.0,0.000202,2]
[364447291,1749103848057,-3000.0,0.0002021,2]
[364447293,1749103848066,-151.0,0.0002021,2]
[364447295,1749103848076,-151.0,0.0002021,2]
[364447297,1749103848085,-151.0,0.0002021,2]
[364447299,1749103848094,-3000.0,0.0002022,2]
[364447301,1749103848104,-136515.04018313,0.0002022,2]
[364447303,1749103848113,-500.0,0.00020229,2]
[364447305,1749103848122,-151.0,0.0002023,2]
[364447307,1749103848133,-151.0,0.0002023,2]
[364447309,1749103848142,-151.0,0.0002023,2]
[364447311,1749103848152,-151.42789,0.0002023,2]
[364447313,1749103848162,-151.0,0.0002023,2]
[364447315,1749103848172,-151.656777,0.0002023,2]
[364447317,1749103848181,-151.781114,0.0002023,2]
[364447319,1749103848191,-3000.0,0.0002023,2]
[364447321,1749103848201,-476.415913,0.0002023,2]
[364447323,1749103848210,-476.415913,0.0002023,2]
[364447325,1749103848219,-205.591307,0.0002023,2]
[364447327,1749103848229,-3000.0,0.0002024,2]
[364447329,1749103848239,-155.051163,0.0002024,2]
[364447331,1749103848249,-151.0,0.0002024,2]
[364447333,1749103848259,-151.0,0.0002024,2]
[364447335,1749103848270,-151.0,0.0002024,2]
[364447337,1749103848279,-151.0,0.0002024,2]
[364447339,1749103848289,-151.0,0.0002024,2]
[364447341,1749103848299,-151.0,0.00020245,2]
[364447343,1749103848310,-387.412387,0.00020245,2]
[364447345,1749103848320,-387.412387,0.00020245,2]
[364447347,1749103848331,-168.719121,0.00020245,2]
[364447349,1749103848340,-168.719121,0.00020245,2]
[364447351,1749103848351,-151.0,0.0002025,2]
[364447353,1749103848361,-151.0,0.0002025,2]
[364447355,1749103848371,-151.0,0.0002025,2]
[364447357,1749103848381,-151.0,0.0002025,2]
[364447359,1749103848390,-151.0,0.0002025,2]
[364447361,1749103848401,-312.360325,0.0002025,2]
[364447363,1749103848411,-312.360325,0.0002025,2]
[364447365,1749103848421,-3000.0,0.0002025,2]
[364447367,1749103848430,-196.148849,0.0002025,2]
[364447369,1749103848444,-196.148849,0.0002025,2]
[364447371,1749103848453,-151.0,0.0002025,2]
[364447373,1749103848463,-151.0,0.0002025,2]
[364447375,1749103848475,-151.0,0.0002025,2]
[364447377,1749103848489,-151.0,0.0002025,2]
[364447379,1749103848498,-192.026116,0.0002025,2]
[364447381,1749103848509,-192.026116,0.0002025,2]
[364447383,1749103848522,-151.0,0.0002025,2]
[364447385,1749103848532,-276.701483,0.0002025,2]
[364447387,1749103848542,-151.0,0.0002025,2]
[364447389,1749103848552,-151.0,0.0002025,2]
[364447391,1749103848562,-151.0,0.0002025,2]
[364447393,1749103848572,-151.0,0.0002025,2]
[364447395,1749103848582,-151.0,0.0002025,2]
[364447397,1749103848592,-796.837502,0.0002025,2]
[364447399,1749103848603,-796.837502,0.0002025,2]
[364447401,1749103848613,-252.339108,0.0002025,2]
[364447403,1749103848622,-252.339108,0.0002025,2]
[364447405,1749103848631,-230.106072,0.0002025,2]
[364447407,1749103848641,-230.106072,0.0002025,2]
[364447420,1749103848755,-4935.044669,0.0002026,2]
[364447422,1749103848767,-151.0,0.0002026,2]
[364447424,1749103848777,-151.0,0.0002026,2]
[364447426,1749103848786,-151.0,0.0002026,2]
[364447428,1749103848796,-151.0,0.0002026,2]
[364447430,1749103848807,-227.209186,0.0002026,2]
[364447432,1749103848816,-151.0,0.0002026,2]
[364447434,1749103848826,-227.209186,0.0002026,2]
[364447436,1749103848835,-301.631345,0.0002026,2]
[364447438,1749103848845,-151.0,0.0002026,2]
[364447440,1749103848855,-151.0,0.0002026,2]
[364447442,1749103848865,-249.008402,0.0002026,2]
[364447444,1749103848875,-249.008402,0.0002026,2]
[364447446,1749103848885,-440.0,0.00020263,2]
[364447448,1749103848895,-440.0,0.00020263,2]
[364447450,1749103848904,-440.0,0.00020263,2]
[364447452,1749103848914,-500.0,0.00020263,2]
[364447454,1749103848924,-151.0,0.00020263,2]
[364447456,1749103848933,-440.0,0.00020263,2]
[364447457,1749103848943,-151.0,0.00020263,2]
[364447458,1749103848952,-440.0,0.00020264,2]
[364447459,1749103848962,-440.0,0.00020264,2]
[364447460,1749103848971,-440.0,0.00020264,2]
[364447461,1749103848980,-440.0,0.00020264,2]
[364447462,1749103848989,-861.15,0.00020264,2]
[364447463,1749103848999,-440.0,0.00020264,2]
[364447465,1749103849008,-440.0,0.00020264,2]
[364447467,1749103849017,-440.0,0.00020264,2]
[364447469,1749103849027,-440.0,0.00020264,2]
[364447471,1749103849036,-440.0,0.00020264,2]
[364447473,1749103849045,-440.0,0.00020265,2]
[364447475,1749103849055,-661.45,0.00020265,2]
[364447477,1749103849064,-151.0,0.00020266,2]
[364447479,1749103849074,-1042.724498,0.00020266,2]
[364447481,1749103849083,-1042.724498,0.00020266,2]
[364447483,1749103849093,-151.135504,0.00020266,2]
[364447485,1749103849102,-151.135504,0.00020266,2]
[364447487,1749103849111,-156.594705,0.00020266,2]
[364447489,1749103849120,-440.0,0.00020266,2]
[364447491,1749103849130,-440.0,0.00020266,2]
[364447493,1749103849140,-1217.12,0.00020266,2]
[364447495,1749103849150,-440.0,0.00020266,2]
[364447497,1749103849159,-476.415913,0.00020266,2]
[364447499,1749103849169,-476.415913,0.00020266,2]
[364447501,1749103849179,-151.0,0.00020267,2]
[364447503,1749103849189,-151.0,0.00020267,2]
[364447505,1749103849199,-151.0,0.00020267,2]
[364447507,1749103849209,-151.0,0.00020267,2]
[364447509,1749103849219,-151.0,0.00020267,2]
[364447511,1749103849228,-166.0,0.00020274,2]
[364447513,1749103849238,-151.0,0.00020274,2]
[364447515,1749103849248,-387.412387,0.00020274,2]
[364447517,1749103849258,-387.412387,0.00020274,2]
[364447519,1749103849268,-151.0,0.00020274,2]
[364447521,1749103849279,-298.13324,0.00020274,2]
[364447523,1749103849290,-151.0,0.00020274,2]
[364447525,1749103849301,-151.0,0.00020274,2]
[364447527,1749103849311,-151.0,0.00020274,2]
[364447529,1749103849321,-500.0,0.00020289,2]
[364447531,1749103849331,-153.069678,0.0002029,2]
[364447533,1749103849342,-151.0,0.0002029,2]
[364447535,1749103849352,-151.0,0.0002029,2]
[364447537,1749103849362,-151.0,0.0002029,2]
[364447539,1749103849371,-252.202548,0.0002029,2]
[364447541,1749103849381,-151.0,0.0002029,2]
[364447543,1749103849391,-151.0,0.0002029,2]
[364447545,1749103849401,-151.0,0.0002029,2]
[364447548,1749103849411,-151.764107,0.0002029,2]
[364447549,1749103849421,-372.986633,0.0002029,2]
[364447551,1749103849431,-372.986633,0.0002029,2]
[364447553,1749103849441,-151.0,0.0002029,2]
[364447555,1749103849450,-151.0,0.0002029,2]
[364447557,1749103849459,-196.553617,0.0002029,2]
[364447559,1749103849469,-151.0,0.0002029,2]
[364447561,1749103849479,-185.090799,0.0002029,2]
[364447563,1749103849488,-168.719121,0.0002029,2]
[364447565,1749103849498,-168.719121,0.0002029,2]
[364447567,1749103849507,-151.354523,0.0002031,2]
[364447569,1749103849520,-151.0,0.0002031,2]
[364447572,1749103849531,-151.0,0.0002031,2]
[364447574,1749103849540,-151.0,0.0002031,2]
[364447576,1749103849551,-151.0,0.0002031,2]
[364447578,1749103849563,-151.0,0.0002031,2]
[364447580,1749103849573,-151.0,0.0002031,2]
[364447582,1749103849582,-151.0,0.0002031,2]
[364447584,1749103849592,-151.0,0.0002032,2]
[364447586,1749103849603,-312.360325,0.0002032,2]
[364447588,1749103849613,-312.360325,0.0002032,2]
[364447590,1749103849623,-151.0,0.0002032,2]
[364447592,1749103849632,-151.0,0.0002032,2]
[364447594,1749103849641,-151.0,0.0002032,2]
[364447596,1749103849651,-187.719511,0.0002032,2]
[364447598,1749103849660,-796.837502,0.0002032,2]
[364447600,1749103849669,-796.837502,0.0002032,2]
[364447602,1749103849678,-252.339108,0.0002032,2]
[364447604,1749103849687,-252.339108,0.0002032,2]
[364447606,1749103849698,-230.106072,0.0002032,2]
[364447608,1749103849707,-230.106072,0.0002032,2]
[364447610,1749103849717,-196.148849,0.0002035,2]
[364447612,1749103849726,-196.148849,0.0002035,2]
[364447614,1749103849735,-151.0,0.0002035,2]
[364447616,1749103849745,-151.0,0.0002035,2]
[364447618,1749103849755,-151.0,0.0002035,2]
[364447620,1749103849766,-192.026116,0.0002035,2]
[364447622,1749103849775,-192.026116,0.0002035,2]
[364447624,1749103849784,-151.0,0.0002037,2]
[364447626,1749103849793,-280.633622,0.0002037,2]
[364447628,1749103849803,-151.0,0.0002037,2]
[364447630,1749103849813,-372.986633,0.0002037,2]
[364447632,1749103849823,-372.986633,0.0002037,2]
[364447634,1749103849832,-151.0,0.0002037,2]
[364447636,1749103849841,-151.0,0.0002037,2]
[364447638,1749103849855,-196.553617,0.0002037,2]
[364447641,1749103849864,-275.503422,0.00020417,2]
[364447643,1749103849874,-151.0,0.00020417,2]
[364447645,1749103849885,-1505.90734246,0.00020418,2]
[364447646,1749103849894,-440.0,0.00020447,2]
[364447649,1749103849903,-440.0,0.00020447,2]
[364447651,1749103849913,-440.0,0.00020447,2]
[364447653,1749103849922,-756.22,0.00020447,2]
[364447655,1749103849932,-215.0738,0.00020474,2]
[364447657,1749103849942,-224.46770578,0.00020482,2]
[364447659,1749103849952,-151.0,0.00020492,2]
[364447661,1749103849962,-151.0,0.00020492,2]
[364447663,1749103849973,-151.0,0.00020492,2]
[364447665,1749103849983,-500.0,0.00020503,2]
[364447667,1749103849992,-151.0,0.00020504,2]
[364447669,1749103850002,-151.0,0.00020504,2]
[364447671,1749103850011,-151.0,0.00020504,2]
[364447673,1749103850021,-151.0,0.00020504,2]
[364447675,1749103850031,-1042.724498,0.00020504,2]
[364447677,1749103850040,-1042.724498,0.00020504,2]
[364447679,1749103850050,-227.209186,0.00020504,2]
[364447681,1749103850060,-227.209186,0.00020504,2]
[364447683,1749103850070,-151.0,0.00020504,2]
[364447685,1749103850079,-151.0,0.00020504,2]
[364447687,1749103850089,-249.008402,0.00020504,2]
[364447689,1749103850099,-249.008402,0.00020504,2]
[364447691,1749103850108,-5000.0,0.00020524,2]
[364447693,1749103850118,-151.0,0.00020524,2]
[364447695,1749103850127,-151.0,0.00020524,2]
[364447697,1749103850136,-151.0,0.00020536,2]
[364447699,1749103850146,-151.135504,0.00020536,2]
[364447702,1749103850156,-151.135504,0.00020536,2]
[364447704,1749103850165,-476.415913,0.00020536,2]
[364447706,1749103850176,-476.415913,0.00020536,2]